[Event "Marienbad Open IM1 2020"]
[Site "Marianske Lazne"]
[Date "2020.01.19"]
[Round "2.9"]
[White "Tymrakiewicz, Rafal"]
[Black "Steiner, Bruno"]
[Result "1/2-1/2"]
[ECO "D02"]
[WhiteElo "2254"]
[BlackElo "2117"]
[Annotator "ChessBase"]
[PlyCount "141"]
[EventDate "2020.01.18"]
[EventType "tourn"]
[EventCountry "CZE"]
[SourceTitle "playchess.com"]
[Source "ChessBase"]
[SourceQuality "1"]
[TimeControl "40/5400+30:1800+30"]

1. d4 d5 2. c3 Nf6 3. Nf3 e6 4. Bg5 h6 5. Bh4 Be7 6. Nbd2 Nbd7 7. e3 b6 8. Bb5 O-O 9. Bc6 Rb8 10. Qe2 Ne8 11. Bg3 Bb7 12. Bxb7 Rxb7 13. O-O Nd6 14. Rfd1 Nf5 15. Qa6 Qc8 16. c4 Nxg3 17. hxg3 c6 18. a3 Rc7 19. Qxc8 Rfxc8 20. b4 a6 21. c5 bxc5 22. bxc5 Rb7 23. Rab1 Rcb8 24. Rxb7 Rxb7 25. Rb1 Rxb1+ 26. Nxb1 e5 27. Nc3 e4 28. Ne1 f5 29. Nc2 Kf7 30. Kf1 Ke6 31. Ke2 h5 32. Kd2 Bd8 33. Nb4 Nb8 34. Ne2 g5 35. Kc3 Kd7 36. Kb3 Kc7 37. Kc2 a5 38. Na2 Nd7 39. Nac3 Nf6 40. Kd2 Kb7 41. Ng1 Ne8 42. f3 Ng7 43. Ke2 Ne6 44. Kf2 Ka6 45. Nge2 Bf6 46. Ke1 Be7 47. Kd2 Bf8 48. Na4 Kb5 49. Nb6 Nxc5 50. dxc5 Bxc5 51. Nd7 exf3 52. gxf3 h4 53. gxh4 gxh4 54. a4+ Kc4 55. Ne5+ Kb3 56. Nxc6 Kxa4 57. Nf4 Kb5 58. Ne5 Bd6 59. Neg6 Bxf4 60. Nxf4 Kc4 61. Kc2 a4 62. Nh3 a3 63. Nf2 d4 64. e4 f4 65. e5 Kd5 66. Kb3 Kxe5 67. Kxa3 d3 68. Nxd3+ Kd4 69. Nxf4 Ke3 70. Ng2+ Kxf3 71. Nxh4+ 1/2-1/2

[Event "Marienbad Open IM1 2020"]
[Site "Marianske Lazne"]
[Date "2020.01.20"]
[Round "3.6"]
[White "Sernecki, Franciszek"]
[Black "Plischki, Sebastian"]
[Result "0-1"]
[ECO "D91"]
[WhiteElo "2204"]
[BlackElo "2387"]
[Annotator "RC"]
[PlyCount "58"]
[EventDate "2020.01.18"]
[EventType "tourn"]
[EventCountry "CZE"]
[SourceTitle "playchess.com"]
[Source "ChessBase"]
[SourceQuality "1"]
[TimeControl "40/5400+30:1800+30"]

1. d4 {[%emt 0:00:00]} Nf6 {[%emt 0:00:00]} 2. c4 {[%emt 0:00:05]} g6 {[%emt 0:00:00]} 3. Nc3 {[%emt 0:00:03]} d5 {[%emt 0:00:00]} 4. Nf3 {[%emt 0:00:34]} Bg7 {[%emt 0:00:05]} 5. Bg5 {[%emt 0:00:26]} Ne4 {[%emt 0:00:20]} 6. h4 {[%emt 0:00:20]} Nxg5 {[%emt 0:00:25]} 7. hxg5 {[%emt 0:00:15]} dxc4 {[%emt 0:00:10]} 8. Qa4+ {[%emt 0:13:38]} c6 {[%emt 0:00:50]} 9. Qxc4 {[%emt 0:01:58]} Be6 {[%emt 0:01:22]} 10. Qa4 {[%emt 0:06:41]} Qb6 {[%emt 0:02:48]} 11. O-O-O {[%emt 0:03:57]} O-O {[%emt 0:02:09]} 12. e3 {[%emt 0:04:06]} Qc7 {[%emt 0:06:36]} 13. Be2 {[%emt 0:13:36]} Nd7 {[%emt 0:02:37]} 14. Rh4 {[%emt 0:05:35]} b5 {[%emt 0:03:57]} 15. Qc2 {[%emt 0:02:56]} Qa5 {[%emt 0:01:10]} 16. b3 {[%emt 0:06:50]} Rfc8 {[%emt 0:03:36]} 17. Ne1 {[%emt 0:12:18]} c5 {[%emt 0:03:04]} 18. d5 {[%emt 0:04:02]} Bf5 {[%emt 0:01:21]} 19. e4 {[%emt 0:03:16]} Bxc3 {[%emt 0:03:08]} 20. exf5 {[%emt 0:04:37]} Bxe1 {[%emt 0:01:36]} 21. fxg6 {[%emt 0:00:29]} hxg6 {[%emt 0:03:33]} 22. Bg4 {[%emt 0:04:51]} c4 {[%emt 0:06:24]} 23. b4 {[%emt 0:02:48]} Qa3+ {[%emt 0:01:02]} 24. Kb1 {[%emt 0:00:04]} Qxb4+ {[%emt 0:00:05]} 25. Kc1 {[%emt 0:00:04]} Rd8 {[%emt 0:09:53]} 26. Be6 {[%emt 0:02:41]} Nf8 {[%emt 0:04:30]} 27. Qe4 {[%emt 0:03:10]} fxe6 {[%emt 0:04:02]} 28. Rh6 {[%emt 0:01:09]} Qc3+ {[%emt 0:08:44]} 29. Kb1 {[%emt 0:00:06]} Qg7 {[%emt 0:00:25]} 0-1

[Event "Marienbad Open IM1 2020"]
[Site "Marianske Lazne"]
[Date "2020.01.20"]
[Round "3.7"]
[White "Steiner, Bruno"]
[Black "Stigar, Petter"]
[Result "1/2-1/2"]
[ECO "D00"]
[WhiteElo "2117"]
[BlackElo "2217"]
[Annotator "ChessBase"]
[PlyCount "34"]
[EventDate "2020.01.18"]
[EventType "tourn"]
[EventCountry "CZE"]
[SourceTitle "playchess.com"]
[Source "ChessBase"]
[SourceQuality "1"]
[TimeControl "40/5400+30:1800+30"]

1. d4 {[%emt 0:00:00]} d5 {[%emt 0:00:00]} 2. Bf4 {[%emt 0:00:13]} Nf6 {[%emt 0:00:00]} 3. e3 {[%emt 0:00:14]} e6 {[%emt 0:00:00]} 4. Nd2 {[%emt 0:00:19]} Bd6 {[%emt 0:00:00]} 5. Bg3 {[%emt 0:00:18]} O-O {[%emt 0:00:02]} 6. Bd3 {[%emt 0:00:39]} c5 {[%emt 0:01:06]} 7. c3 {[%emt 0:00:36]} Nc6 {[%emt 0:00:53]} 8. Ngf3 {[%emt 0:00:27]} b6 {[%emt 0:00:12]} 9. Ne5 {[%emt 0:00:45]} Bb7 {[%emt 0:01:56]} 10. f4 {[%emt 0:01:28]} Ne7 {[%emt 0:00:36]} 11. Qc2 {[%emt 0:00:27]} c4 {[%emt 0:08:49]} 12. Be2 {[%emt 0:01:03]} Nf5 {[%emt 0:02:42]} 13. Bf2 {[%emt 0:00:10]} Be7 {[%emt 0:00:38]} 14. g4 {[%emt 0:05:50]} Nd6 {[%emt 0:00:20]} 15. Bf3 {[%emt 0:05:04]} Qc7 {[%emt 0:03:12]} 16. g5 {[%emt 0:03:07]} Nfe4 {[%emt 0:01:34]} 17. Nxe4 {[%emt 0:02:29]} dxe4 {[%emt 0:09:29]} 1/2-1/2

[Event "Marienbad Open IM1 2020"]
[Site "Marianske Lazne"]
[Date "2020.01.20"]
[Round "3.8"]
[White "Roesemann, Rainer"]
[Black "Tymrakiewicz, Rafal"]
[Result "1-0"]
[ECO "A10"]
[WhiteElo "2231"]
[BlackElo "2254"]
[Annotator "ChessBase"]
[PlyCount "133"]
[EventDate "2020.01.18"]
[EventType "tourn"]
[EventCountry "CZE"]
[SourceTitle "playchess.com"]
[Source "ChessBase"]
[SourceQuality "1"]
[TimeControl "40/5400+30:1800+30"]

1. c4 {[%emt 0:00:00]} g6 {[%emt 0:01:45]} 2. g3 {[%emt 0:00:00]} Bg7 {[%emt 0:00:06]} 3. Bg2 {[%emt 0:00:00]} e5 {[%emt 0:05:23]} 4. Nc3 {[%emt 0:00:08]} d6 {[%emt 0:00:51]} 5. e4 {[%emt 0:00:53]} Nc6 {[%emt 0:02:29]} 6. d3 {[%emt 0:00:25]} Be6 {[%emt 0:01:48]} 7. Nge2 {[%emt 0:00:39]} h5 {[%emt 0:02:00]} 8. Be3 {[%emt 0:08:55]} h4 {[%emt 0:08:26]} 9. Qd2 {[%emt 0:04:14]} Qd7 {[%emt 0:07:46]} 10. Nd5 {[%emt 0:05:18]} Nd8 {[%emt 0:13:02]} 11. f4 {[%emt 0:11:08]} c6 {[%emt 0:04:52]} 12. Ndc3 {[%emt 0:00:36]} Ne7 {[%emt 0:01:17]} 13. O-O-O {[%emt 0:01:09]} Bg4 {[%emt 0:07:13]} 14. Rdf1 {[%emt 0:07:39]} Ne6 {[%emt 0:10:34]} 15. d4 {[%emt 0:02:21]} h3 {[%emt 0:12:34]} 16. Bf3 {[%emt 0:00:32]} Bxf3 {[%emt 0:00:12]} 17. Rxf3 {[%emt 0:00:11]} exd4 {[%emt 0:00:29]} 18. Nxd4 {[%emt 0:00:32]} f5 {[%emt 0:04:35]} 19. exf5 {[%emt 0:20:00]} Nxf5 {[%emt 0:07:05]} 20. Nxf5 {[%emt 0:00:25]} gxf5 {[%emt 0:00:01]} 21. Rd1 {[%emt 0:01:19]} Kf7 {[%emt 0:05:31]} 22. Qd3 {[%emt 0:01:04]} Bxc3 {[%emt 0:00:18]} 23. Qxc3 {[%emt 0:00:44]} Rad8 {[%emt 0:00:41]} 24. Qd3 {[%emt 0:03:10]} Ng7 {[%emt 0:00:23]} 25. Bd4 {[%emt 0:03:01]} Rhe8 {[%emt 0:01:07]} 26. Qf1 {[%emt 0:01:23]} Re4 {[%emt 0:00:49]} 27. Qxh3 {[%emt 0:01:58]} Qe6 {[%emt 0:00:26]} 28. Rfd3 {[%emt 0:03:50]} Qxc4+ {[%emt 0:01:41]} 29. Bc3 {[%emt 0:01:07]} d5 {[%emt 0:00:23]} 30. Rd4 {[%emt 0:03:00]} Rxd4 {[%emt 0:00:40]} 31. Rxd4 {[%emt 0:00:07]} Qe2 {[%emt 0:00:14]} 32. Qh6 {[%emt 0:05:01]} Qe6 {[%emt 0:00:26]} 33. Qg5 {[%emt 0:01:50]} Qe7 {[%emt 0:00:50]} 34. Qxe7+ {[%emt 0:00:36]} Kxe7 {[%emt 0:00:01]} 35. Rb4 {[%emt 0:00:17]} Ne8 {[%emt 0:00:57]} 36. Rxb7+ {[%emt 0:00:12]} Ke6 {[%emt 0:00:32]} 37. Bb4 {[%emt 0:01:36]} Rd7 {[%emt 0:00:31]} 38. Rxd7 {[%emt 0:00:28]} Kxd7 {[%emt 0:00:01]} 39. Bc5 {[%emt 0:00:26]} a6 {[%emt 0:00:16]} 40. b4 {[%emt 0:00:54]} Nf6 {[%emt 0:00:55]} 41. Bd4 {[%emt 0:30:30]} Ne4 {[%emt 0:00:57]} 42. Kc2 {[%emt 0:00:00]} a5 {[%emt 0:01:44]} 43. bxa5 {[%emt 0:00:00]} c5 {[%emt 0:00:05]} 44. Be3 {[%emt 0:00:00]} Kc6 {[%emt 0:02:33]} 45. Kd3 {[%emt 0:00:00]} Kb5 {[%emt 0:18:15]} 46. a6 {[%emt 0:00:00]} Kxa6 {[%emt 0:00:54]} 47. Bxc5 {[%emt 0:00:00]} Kb5 {[%emt 0:01:36]} 48. Be7 {[%emt 0:00:00]} Kc6 {[%emt 0:00:15]} 49. Kd4 {[%emt 0:00:00]} Nd2 {[%emt 0:01:26]} 50. h4 {[%emt 0:00:00]} Nf3+ {[%emt 0:02:35]} 51. Ke3 {[%emt 0:00:00]} Nh2 {[%emt 0:00:15]} 52. h5 {[%emt 0:00:00]} Kd7 {[%emt 0:00:09]} 53. Bc5 {[%emt 0:00:00]} Ke6 {[%emt 0:00:37]} 54. a4 {[%emt 0:00:00]} Nf1+ {[%emt 0:00:48]} 55. Kf2 {[%emt 0:00:00]} Nd2 {[%emt 0:00:06]} 56. Bb4 {[%emt 0:00:00]} Ne4+ {[%emt 0:00:25]} 57. Kf3 {[%emt 0:00:00]} d4 {[%emt 0:00:46]} 58. a5 {[%emt 0:00:00]} Kd5 {[%emt 0:00:04]} 59. h6 {[%emt 0:00:00]} Nf6 {[%emt 0:00:43]} 60. Be7 {[%emt 0:00:00]} Nh7 {[%emt 0:00:01]} 61. Ke2 {[%emt 0:00:00]} Kc6 {[%emt 0:00:44]} 62. Kd3 {[%emt 0:00:00]} Kb5 {[%emt 0:00:08]} 63. Bd8 {[%emt 0:00:00]} Nf8 {[%emt 0:00:33]} 64. Kxd4 {[%emt 0:00:00]} Ne6+ {[%emt 0:00:05]} 65. Ke5 {[%emt 0:00:00]} Nxd8 {[%emt 0:00:03]} 66. Kf6 {[%emt 0:00:00]} Kxa5 {[%emt 0:00:24]} 67. h7 {[%emt 0:00:00]} 1-0

[Event "Marienbad Open IM1 2020"]
[Site "Marianske Lazne"]
[Date "2020.01.20"]
[Round "3.10"]
[White "Michalek, Jan"]
[Black "Vagman, Roy"]
[Result "1-0"]
[ECO "A06"]
[WhiteElo "2251"]
[BlackElo "2089"]
[Annotator "ChessBase"]
[PlyCount "83"]
[EventDate "2020.01.18"]
[EventType "tourn"]
[EventCountry "CZE"]
[SourceTitle "playchess.com"]
[Source "ChessBase"]
[SourceQuality "1"]
[TimeControl "40/5400+30:1800+30"]

1. Nf3 {[%emt 0:00:00]} d5 {[%emt 0:00:38]} 2. g3 {[%emt 0:00:00]} g6 {[%emt 0:00:56]} 3. Bg2 {[%emt 0:00:36]} Bg7 {[%emt 0:00:12]} 4. O-O {[%emt 0:00:38]} e5 {[%emt 0:00:56]} 5. d3 {[%emt 0:00:37]} Ne7 {[%emt 0:00:30]} 6. e4 {[%emt 0:05:24]} c6 {[%emt 0:09:24]} 7. Qe2 {[%emt 0:07:29]} Qd6 {[%emt 0:12:38]} 8. Re1 {[%emt 0:02:47]} d4 {[%emt 0:04:34]} 9. a4 {[%emt 0:02:10]} c5 {[%emt 0:03:51]} 10. Na3 {[%emt 0:01:47]} O-O {[%emt 0:01:05]} 11. Nd2 {[%emt 0:01:24]} Nbc6 {[%emt 0:07:03]} 12. f4 {[%emt 0:04:54]} f6 {[%emt 0:02:17]} 13. Nac4 {[%emt 0:03:59]} Qc7 {[%emt 0:01:39]} 14. Rf1 {[%emt 0:01:38]} b6 {[%emt 0:07:51]} 15. Nf3 {[%emt 0:01:47]} Bd7 {[%emt 0:04:14]} 16. Bd2 {[%emt 0:02:12]} a6 {[%emt 0:01:58]} 17. a5 {[%emt 0:02:45]} bxa5 {[%emt 0:04:57]} 18. fxe5 {[%emt 0:01:55]} fxe5 {[%emt 0:01:36]} 19. Nxa5 {[%emt 0:02:34]} Nxa5 {[%emt 0:01:49]} 20. Rxa5 {[%emt 0:01:30]} Bb5 {[%emt 0:03:14]} 21. Bh3 {[%emt 0:01:37]} Nc6 {[%emt 0:08:30]} 22. Raa1 {[%emt 0:13:36]} Nb4 {[%emt 0:01:15]} 23. Be6+ {[%emt 0:02:01]} Kh8 {[%emt 0:00:02]} 24. Bb3 {[%emt 0:02:29]} h6 {[%emt 0:02:50]} 25. Nh4 {[%emt 0:01:36]} Kh7 {[%emt 0:04:58]} 26. Qg4 {[%emt 0:01:59]} Be8 {[%emt 0:08:06]} 27. Rxf8 {[%emt 0:04:25]} Bxf8 {[%emt 0:00:01]} 28. Qe6 {[%emt 0:04:19]} Qg7 {[%emt 0:01:44]} 29. Bxb4 {[%emt 0:03:59]} cxb4 {[%emt 0:01:05]} 30. Bd5 {[%emt 0:00:33]} Rb8 {[%emt 0:02:01]} 31. Rxa6 {[%emt 0:02:22]} Bd7 {[%emt 0:01:11]} 32. Qxg6+ {[%emt 0:00:57]} Qxg6 {[%emt 0:00:01]} 33. Nxg6 {[%emt 0:00:28]} Bg7 {[%emt 0:00:28]} 34. Nh4 {[%emt 0:04:44]} Kh8 {[%emt 0:01:41]} 35. Kg2 {[%emt 0:00:44]} b3 {[%emt 0:01:43]} 36. Bxb3 {[%emt 0:00:30]} Bb5 {[%emt 0:00:14]} 37. Ra3 {[%emt 0:01:59]} Bf6 {[%emt 0:00:44]} 38. Nf5 {[%emt 0:00:33]} Rb7 {[%emt 0:00:32]} 39. Nxh6 {[%emt 0:00:30]} Be7 {[%emt 0:00:30]} 40. Ra8+ {[%emt 0:00:16]} Kh7 {[%emt 0:00:16]} 41. Nf5 {[%emt 0:30:21]} Bc5 {[%emt 0:02:24]} 42. Bd5 {[%emt 0:00:00]} 1-0

[Event "Marienbad Open IM1 2020"]
[Site "Marianske Lazne"]
[Date "2020.01.21"]
[Round "4.7"]
[White "Abhilash, Reddy M.L."]
[Black "Michalek, Jan"]
[Result "1/2-1/2"]
[ECO "E67"]
[WhiteElo "2258"]
[BlackElo "2251"]
[Annotator "ChessBase"]
[PlyCount "63"]
[EventDate "2020.01.18"]
[EventType "tourn"]
[EventCountry "CZE"]
[SourceTitle "playchess.com"]
[Source "ChessBase"]
[SourceQuality "1"]
[TimeControl "40/5400+30:1800+30"]

1. d4 {[%emt 0:07:47]} Nf6 {[%emt 0:00:00]} 2. Nf3 {[%emt 0:00:01]} d6 {[%emt 0:00:42]} 3. c4 {[%emt 0:00:05]} g6 {[%emt 0:00:25]} 4. Nc3 {[%emt 0:00:07]} Bg7 {[%emt 0:00:11]} 5. g3 {[%emt 0:00:06]} O-O {[%emt 0:00:29]} 6. Bg2 {[%emt 0:00:04]} Nbd7 {[%emt 0:00:39]} 7. O-O {[%emt 0:00:07]} e5 8. dxe5 {[%emt 0:00:03]} dxe5 {[%emt 0:01:53]} 9. Be3 {[%emt 0:00:05]} Re8 {[%emt 0:03:34]} 10. h3 {[%emt 0:00:07]} c6 {[%emt 0:05:54]} 11. Qb3 {[%emt 0:02:51]} Qa5 {[%emt 0:02:06]} 12. a3 {[%emt 0:06:37]} Nc5 {[%emt 0:09:13]} 13. Qb4 {[%emt 0:05:29]} Qxb4 {[%emt 0:05:56]} 14. axb4 {[%emt 0:00:02]} Nce4 {[%emt 0:03:02]} 15. Nxe4 {[%emt 0:07:23]} Nxe4 {[%emt 0:00:12]} 16. Rxa7 {[%emt 0:05:25]} Rxa7 {[%emt 0:00:15]} 17. Bxa7 {[%emt 0:00:03]} Be6 {[%emt 0:00:48]} 18. Rc1 {[%emt 0:06:00]} Ra8 {[%emt 0:00:30]} 19. Be3 {[%emt 0:18:39]} Ra2 {[%emt 0:01:02]} 20. Ne1 {[%emt 0:03:10]} f5 {[%emt 0:05:06]} 21. Nd3 {[%emt 0:05:12]} Nd6 {[%emt 0:01:57]} 22. Nc5 {[%emt 0:01:30]} Bc8 {[%emt 0:00:14]} 23. b5 {[%emt 0:16:26]} cxb5 {[%emt 0:04:19]} 24. Bd5+ {[%emt 0:02:18]} Kf8 {[%emt 0:03:04]} 25. cxb5 {[%emt 0:00:56]} Rxb2 {[%emt 0:00:39]} 26. Nxb7 {[%emt 0:03:39]} Bxb7 {[%emt 0:05:00]} 27. Bxb7 {[%emt 0:00:14]} Nxb5 {[%emt 0:02:12]} 28. Rc8+ {[%emt 0:02:15]} Ke7 {[%emt 0:02:38]} 29. Ba6 {[%emt 0:00:34]} Kd7 {[%emt 0:13:54]} 30. Rb8 {[%emt 0:01:35]} Rb1+ 31. Kg2 Nc3 32. Rb4 1/2-1/2

[Event "Marienbad Open IM1 2020"]
[Site "Marianske Lazne"]
[Date "2020.01.21"]
[Round "4.9"]
[White "Stigar, Petter"]
[Black "Roesemann, Rainer"]
[Result "1/2-1/2"]
[ECO "B15"]
[WhiteElo "2217"]
[BlackElo "2231"]
[Annotator "ChessBase"]
[PlyCount "95"]
[EventDate "2020.01.18"]
[EventType "tourn"]
[EventCountry "CZE"]
[SourceTitle "playchess.com"]
[Source "ChessBase"]
[SourceQuality "1"]
[TimeControl "40/5400+30:1800+30"]

1. e4 c6 2. d4 d5 3. Nd2 dxe4 4. Nxe4 Nf6 5. Nxf6+ exf6 6. Bc4 Bd6 7. Qe2+ Qe7 8. Qxe7+ Kxe7 9. Bd3 Re8 10. Ne2 Be6 11. Bf4 Bxf4 12. Nxf4 g6 13. O-O-O Nd7 14. Rhe1 Kf8 15. Re3 Nb6 16. Rde1 Bd7 17. Rxe8+ Bxe8 18. c3 Rd8 19. Kc2 Rd6 20. Be4 Bd7 21. Nd3 Re6 22. Nc5 Re7 23. Nxd7+ Nxd7 24. Kd2 f5 25. Bd3 Nf6 26. Rxe7 Kxe7 27. f3 Nd5 28. Bc4 Nb6 29. Bb3 f4 30. Kd3 Nc8 31. c4 Nd6 32. c5 Nf5 33. Ke4 Nh4 34. g3 fxg3 35. hxg3 Nf5 36. g4 Ng7 37. d5 cxd5+ 38. Bxd5 b6 39. cxb6 axb6 40. g5 Nf5 41. a4 h5 42. gxh6 Nxh6 43. b4 Nf5 44. a5 Nd6+ 45. Kd4 Nb5+ 46. Kc4 Nd6+ 47. Kd4 Nb5+ 48. Kc4 1/2-1/2

[Event "Marienbad Open IM1 2020"]
[Site "Marianske Lazne"]
[Date "2020.01.21"]
[Round "4.10"]
[White "Sernecki, Franciszek"]
[Black "Steiner, Bruno"]
[Result "1-0"]
[ECO "B80"]
[WhiteElo "2204"]
[BlackElo "2117"]
[Annotator "ChessBase"]
[PlyCount "105"]
[EventDate "2020.01.18"]
[EventType "tourn"]
[EventCountry "CZE"]
[SourceTitle "playchess.com"]
[Source "ChessBase"]
[SourceQuality "1"]
[TimeControl "40/5400+30:1800+30"]

1. e4 {[%emt 0:00:00]} c5 {[%emt 0:00:51]} 2. Nf3 {[%emt 0:00:43]} e6 {[%emt 0:01:27]} 3. Nc3 {[%emt 0:00:10]} d6 {[%emt 0:01:53]} 4. d4 {[%emt 0:00:20]} cxd4 {[%emt 0:00:11]} 5. Nxd4 {[%emt 0:00:03]} Nf6 {[%emt 0:00:07]} 6. g3 {[%emt 0:00:15]} Be7 {[%emt 0:00:22]} 7. Bg2 {[%emt 0:00:56]} O-O {[%emt 0:00:40]} 8. O-O {[%emt 0:00:43]} Nc6 {[%emt 0:01:29]} 9. Nb3 {[%emt 0:05:34]} Rb8 {[%emt 0:06:58]} 10. a4 {[%emt 0:04:54]} b6 {[%emt 0:12:22]} 11. f4 {[%emt 0:04:01]} Na5 {[%emt 0:02:07]} 12. Nxa5 {[%emt 0:12:06]} bxa5 {[%emt 0:00:19]} 13. b3 {[%emt 0:04:08]} Rb4 {[%emt 0:23:07]} 14. Kh1 {[%emt 0:14:17]} Bb7 {[%emt 0:03:37]} 15. Qe2 {[%emt 0:05:40]} Qa8 {[%emt 0:08:30]} 16. Ba3 {[%emt 0:06:47]} Rc8 {[%emt 0:04:49]} 17. Bxb4 {[%emt 0:06:23]} axb4 {[%emt 0:00:25]} 18. e5 {[%emt 0:08:54]} dxe5 {[%emt 0:04:35]} 19. fxe5 {[%emt 0:00:43]} Bxg2+ {[%emt 0:08:01]} 20. Qxg2 {[%emt 0:00:01]} Qxg2+ {[%emt 0:00:07]} 21. Kxg2 {[%emt 0:00:02]} Ng4 {[%emt 0:00:08]} 22. Ne4 {[%emt 0:02:12]} Ne3+ {[%emt 0:02:21]} 23. Kf3 {[%emt 0:03:01]} Nxf1 {[%emt 0:00:51]} 24. Rxf1 {[%emt 0:00:09]} f5 {[%emt 0:03:11]} 25. exf6 {[%emt 0:00:52]} gxf6 {[%emt 0:00:04]} 26. Rc1 {[%emt 0:09:29]} f5 {[%emt 0:00:53]} 27. Nf2 {[%emt 0:00:34]} Kf7 {[%emt 0:07:11]} 28. Nd3 {[%emt 0:01:46]} Rc3 {[%emt 0:00:28]} 29. g4 {[%emt 0:02:39]} a5 {[%emt 0:02:05]} 30. Kf4 {[%emt 0:03:30]} Bd6+ {[%emt 0:01:29]} 31. Kg5 {[%emt 0:00:48]} h6+ {[%emt 0:00:49]} 32. Kh5 {[%emt 0:00:45]} Bxh2 {[%emt 0:01:17]} 33. gxf5 {[%emt 0:00:48]} exf5 {[%emt 0:00:08]} 34. Rf1 {[%emt 0:00:57]} Kf6 {[%emt 0:00:07]} 35. Rf2 {[%emt 0:00:42]} Bc7 {[%emt 0:00:22]} 36. Kxh6 {[%emt 0:01:26]} Bg3 {[%emt 0:00:59]} 37. Re2 {[%emt 0:01:33]} Rc8 {[%emt 0:00:44]} 38. Kh7 {[%emt 0:00:12]} f4 {[%emt 0:00:25]} 39. Re4 {[%emt 0:00:41]} Rc7+ {[%emt 0:00:28]} 40. Kg8 {[%emt 0:00:36]} Rg7+ {[%emt 0:02:26]} 41. Kf8 {[%emt 0:05:12]} f3 {[%emt 0:09:25]} 42. Re3 {[%emt 0:10:07]} Bd6+ {[%emt 0:07:54]} 43. Ke8 {[%emt 0:00:02]} Rg3 {[%emt 0:00:11]} 44. Kd7 {[%emt 0:01:08]} f2 {[%emt 0:01:44]} 45. Nxf2 {[%emt 0:02:06]} Rxe3 {[%emt 0:05:21]} 46. Ng4+ {[%emt 0:00:03]} Kf5 {[%emt 0:00:10]} 47. Nxe3+ {[%emt 0:00:05]} Ke4 {[%emt 0:00:05]} 48. Nc4 {[%emt 0:00:33]} Bg3 {[%emt 0:02:19]} 49. Kc6 {[%emt 0:02:24]} Kd4 {[%emt 0:00:17]} 50. Nxa5 {[%emt 0:00:31]} Kc3 {[%emt 0:00:25]} 51. Kb5 {[%emt 0:00:39]} Be1 {[%emt 0:00:35]} 52. Nc6 {[%emt 0:00:12]} Kxc2 {[%emt 0:00:13]} 53. Kc4 {[%emt 0:00:11]} 1-0

[Event "Marienbad Open IM1 2020"]
[Site "Marianske Lazne"]
[Date "2020.01.21"]
[Round "5.7"]
[White "Roesemann, Rainer"]
[Black "Sernecki, Franciszek"]
[Result "1-0"]
[ECO "A45"]
[WhiteElo "2231"]
[BlackElo "2204"]
[Annotator "NA"]
[PlyCount "45"]
[EventDate "2020.01.18"]
[EventType "tourn"]
[EventCountry "CZE"]
[SourceTitle "playchess.com"]
[Source "ChessBase"]
[SourceQuality "1"]
[TimeControl "40/5400+30:1800+30"]

1. d4 {[%emt 0:00:00]} Nf6 {[%emt 0:00:00]} 2. Bf4 {[%emt 0:00:00]} c5 {[%emt 0:00:02]} 3. e3 {[%emt 0:00:03]} d5 {[%emt 0:00:26]} 4. c3 {[%emt 0:00:20]} Nc6 {[%emt 0:01:27]} 5. Nd2 {[%emt 0:00:10]} e6 {[%emt 0:08:13]} 6. Ngf3 {[%emt 0:00:43]} Bd6 {[%emt 0:02:27]} 7. Bg3 {[%emt 0:00:12]} Qe7 {[%emt 0:01:10]} 8. Ne5 {[%emt 0:01:08]} Nd7 {[%emt 0:01:21]} 9. f4 {[%emt 0:00:59]} O-O {[%emt 0:01:55]} 10. Bd3 {[%emt 0:00:42]} f6 {[%emt 0:11:06]} 11. Nxc6 {[%emt 0:14:50]} bxc6 {[%emt 0:01:23]} 12. O-O {[%emt 0:01:22]} Bb7 {[%emt 0:14:15]} 13. Nf3 {[%emt 0:10:28]} Rfd8 {[%emt 0:07:23]} 14. e4 {[%emt 0:09:45]} cxd4 {[%emt 0:06:34]} 15. cxd4 {[%emt 0:03:46]} c5 {[%emt 0:01:53]} 16. e5 {[%emt 0:00:48]} Bc7 {[%emt 0:01:24]} 17. Qc2 {[%emt 0:04:06]} g6 {[%emt 0:05:26]} 18. exf6 {[%emt 0:01:08]} Qxf6 {[%emt 0:05:55]} 19. Bh4 {[%emt 0:01:36]} Qxf4 {[%emt 0:03:40]} 20. Bg5 {[%emt 0:04:19]} Qg4 {[%emt 0:02:46]} 21. Bxg6 {[%emt 0:12:54]} Nf8 {[%emt 0:07:11]} 22. Bf7+ {[%emt 0:00:36]} Kg7 {[%emt 0:00:13]} 23. Bf6+ {[%emt 0:00:34]} 1-0

[Event "Marienbad Open IM1 2020"]
[Site "Marianske Lazne"]
[Date "2020.01.21"]
[Round "5.10"]
[White "Vagman, Roy"]
[Black "Abhilash, Reddy M.L."]
[Result "1/2-1/2"]
[ECO "B27"]
[WhiteElo "2089"]
[BlackElo "2258"]
[Annotator "NA"]
[PlyCount "24"]
[EventDate "2020.01.18"]
[EventType "tourn"]
[EventCountry "CZE"]
[SourceTitle "playchess.com"]
[Source "ChessBase"]
[SourceQuality "1"]
[TimeControl "40/5400+30:1800+30"]

1. e4 {[%emt 0:00:00]} c5 {[%emt 0:00:34]} 2. Nf3 {[%emt 0:00:28]} b6 {[%emt 0:00:05]} 3. c4 {[%emt 0:02:55]} Bb7 {[%emt 0:00:11]} 4. Nc3 {[%emt 0:00:10]} e6 {[%emt 0:00:48]} 5. d4 {[%emt 0:01:14]} cxd4 {[%emt 0:01:08]} 6. Nxd4 {[%emt 0:00:12]} a6 {[%emt 0:00:12]} 7. Be2 {[%emt 0:00:15]} Qc7 {[%emt 0:00:06]} 8. Be3 {[%emt 0:00:34]} Nf6 {[%emt 0:00:16]} 9. f3 {[%emt 0:01:22]} Nc6 {[%emt 0:01:46]} 10. O-O {[%emt 0:01:31]} Bc5 11. Nc2 {[%emt 0:08:09]} Nb4 {[%emt 0:22:54]} 12. Bxc5 {[%emt 0:01:51]} Qxc5+ {[%emt 0:06:12]} 1/2-1/2